bitfinex-derivatives/quotes_ETHF0:USTF0_20241231
["timestamp","ask_amount","ask_price","bid_price","bid_amount"]
[1735617161750,0.29978,3341.6,3341.3,0.4229]
[1735617164041,0.29977,3341.7,3341.3,0.4229]
[1735617164258,3.52167088,3341.8,3341.3,0.4229]
[1735617164450,3.82143088,3341.8,3341.4,0.29979]
[1735617165051,3.82143088,3341.8,3341.3,3.9305]
[1735617166153,0.29976,3341.8,3341.3,10.9561807]
[1735617166347,0.29977,3341.8,3341.3,10.9561807]
[1735617167149,0.29977,3341.8,3341.3,3.9305]
[1735617167345,0.29977,3341.7,3341.3,3.9305]
[1735617167857,0.29977,3341.7,3341.3,0.7227]
[1735617169454,3.52167088,3341.9,3341.3,0.7227]
[1735617169455,3.52167088,3341.9,3341.3,0.4229]
[1735617169760,0.29978,3341.6,3341.3,0.7227]
[1735617172853,0.29977,3341.7,3341.4,0.29979]
[1735617173258,3.52167088,3341.8,3341.3,0.4229]
[1735617173454,0.29978,3341.6,3341.3,0.7227]
[1735617175555,0.29978,3341.6,3341.3,0.4229]
[1735617175768,0.29978,3341.6,3341.4,0.29979]
[1735617176662,0.29977,3341.7,3341.4,0.29979]
[1735617177964,0.29976,3341.8,3341.5,0.29978]
[1735617178560,0.29976,3341.8,3341.5,41.09978]
[1735617179062,3.52167088,3341.9,3341.5,40.8]
[1735617179270,3.52167088,3341.9,3341.8,0.29976]
[1735617180168,3.52167088,3342.2,3341.6,10.2334807]
[1735617180368,3.52167088,3342.2,3341.9,0.29975]
[1735617180569,3.52167088,3342.2,3342.0,0.8787]
[1735617180759,3.52167088,3342.2,3342.0,1.3029]
[1735617181364,3.82139088,3342.2,3342.0,1.3029]
[1735617182768,3.52167088,3342.2,3342.0,1.3029]
[1735617186478,3.82140088,3342.2,3342.0,1.3029]
[1735617186879,3.52167088,3342.2,3342.0,1.3029]
[1735617187075,3.82139088,3342.2,3342.0,1.3029]
[1735617188082,3.52167088,3342.2,3342.0,1.3029]
[1735617189883,3.82139088,3342.2,3342.0,1.3029]
[1735617190381,4.8982424,3342.2,3342.0,1.3029]
[1735617191781,1.37657152,3342.2,3342.0,1.3029]
[1735617192678,3.52167088,3342.3,3342.0,1.3029]
[1735617192873,3.52167088,3342.3,3342.1,0.29973]
[1735617193382,3.52167088,3342.3,3342.0,1.60264]
[1735617193983,3.82138088,3342.3,3342.0,1.3029]
[1735617194178,1.07685152,3342.2,3342.0,1.3029]
[1735617195080,1.37658152,3342.2,3342.0,1.3029]
[1735617199281,1.07685152,3342.2,3342.0,1.3029]
[1735617199483,0.29973,3342.1,3342.0,1.3029]
[1735617201291,3.50753,3342.1,3342.0,0.4242]
[1735617202084,7.02920088,3342.1,3342.0,0.4242]
[1735617202495,0.29976,3341.8,3341.7,0.8718]
[1735617202788,1.37661152,3341.8,3341.7,0.8718]
[1735617202992,0.29975,3341.9,3341.7,0.8718]
[1735617203583,3.52167088,3342.0,3341.7,0.8718]
[1735617203787,3.52167088,3342.0,3341.9,0.29975]
[1735617204485,3.52167088,3342.2,3342.1,0.29973]
[1735617205191,3.52167088,3342.2,3342.1,0.73513]
[1735617205386,0.57787088,3342.2,3342.1,3.94293]
[1735617205690,4.00366118,3342.4,3342.3,0.29971]
[1735617205990,4.00366118,3342.4,3342.3,2.56456152]
[1735617206183,4.00366118,3342.6,3342.5,0.2997]
[1735617206389,4.00366118,3342.6,3342.5,1.37655152]
[1735617206789,4.00366118,3342.6,3342.5,4.58435152]
[1735617207591,1.37649152,3343.2,3342.8,0.29966]
[1735617208188,0.29964,3343.2,3342.8,0.29966]
[1735617208698,0.29963,3343.3,3342.9,0.75535]
[1735617208891,0.4387,3343.4,3343.0,0.4535]
[1735617209194,0.29963,3343.3,3343.0,0.4535]
[1735617209492,0.29963,3343.3,3343.1,0.4483]
[1735617210399,4.0612,3343.5,3343.1,0.4483]
[1735617210400,3.2078,3343.5,3343.3,0.29962]
[1735617211591,3.2078,3343.5,3343.1,0.4483]
[1735617211795,0.4255,3343.4,3343.1,0.4483]
[1735617212094,0.4255,3343.4,3343.2,40.8]
[1735617214493,0.4255,3343.4,3343.2,41.09963]
[1735617214889,0.4255,3343.4,3343.2,0.29963]
[1735617217491,0.29959,3343.7,3343.2,0.29963]
[1735617218201,3.50737,3343.9,3343.5,0.29961]
[1735617218404,3.50737,3343.9,3343.6,1.3215]
[1735617218595,3.2078,3343.9,3343.6,1.3215]
[1735617220805,0.29957,3344.0,3343.6,1.3215]
[1735617221198,0.72656,3344.1,3343.6,1.62109]
[1735617221394,0.427,3344.1,3343.6,1.62109]
[1735617221598,0.29956,3344.0,3343.6,1.3215]
[1735617222604,0.427,3344.1,3343.6,1.3215]
[1735617222800,0.29958,3343.9,3343.6,1.3215]
[1735617223209,0.4326,3343.8,3343.6,1.3215]
[1735617226610,3.2078,3344.3,3343.8,0.29958]
[1735617226800,0.4224,3344.1,3343.8,0.29958]
[1735617227005,0.4224,3344.1,3343.9,0.29956]
[1735617227307,0.4224,3344.1,3343.8,3.50737]
[1735617227504,0.4224,3344.1,3343.9,0.29957]
[1735617228215,0.4469,3344.4,3344.0,1.3748695]
[1735617228409,0.4469,3344.4,3344.1,0.4288]
[1735617228709,1.4977195,3344.6,3344.2,1.9415195]
[1735617228915,0.4224,3344.6,3344.3,0.29953]
[1735617229415,0.4224,3344.6,3344.2,2.2410595]
[1735617229713,0.4224,3344.6,3344.2,0.8662]
[1735617229714,0.29952,3344.5,3344.2,0.8662]
[1735617230107,0.29952,3344.5,3344.3,40.8]
[1735617230618,1.4977195,3344.6,3344.3,40.8]
[1735617230916,0.29952,3344.5,3344.3,40.8]
[1735617233618,0.29952,3344.5,3344.2,0.8662]
[1735617234006,0.29952,3344.5,3344.2,40.8]
[1735617234216,0.29952,3344.5,3344.1,0.72835]
[1735617234414,1.3748495,3344.4,3344.1,0.4288]
[1735617234718,0.8477,3344.3,3344.1,0.4288]
[1735617234913,0.4224,3344.6,3344.3,0.29953]
[1735617235120,0.4224,3344.6,3344.4,0.4501]
[1735617235915,0.4224,3344.6,3344.5,0.4581]
[1735617238218,3.2078,3344.7,3344.5,0.75761]
[1735617238717,3.2078,3344.7,3344.6,0.4203]
[1735617240018,0.29949,3344.8,3344.6,0.4203]
[1735617240619,2.70077876,3344.9,3344.2,3.2078]
[1735617240813,0.29951,3344.7,3344.2,3.50734]
[1735617241008,0.4549,3344.6,3344.3,0.29953]
[1735617241521,0.4549,3344.6,3344.4,0.29952]
[1735617241819,2.57075876,3344.9,3344.4,0.73802]
[1735617242019,2.57075876,3344.9,3344.5,0.4367]
[1735617242611,2.27127876,3344.9,3344.5,0.4367]
[1735617242814,0.29951,3344.6,3344.3,0.4158]
[1735617243024,0.445,3344.5,3344.3,0.8525]
[1735617244016,0.445,3344.5,3344.3,1.15203]
[1735617245718,0.29955,3344.1,3344.0,0.4385]
[1735617245921,2.27127876,3344.3,3343.8,3.2078]
[1735617246128,0.4421,3344.0,3343.8,3.2078]
[1735617246615,0.4495,3344.0,3343.8,3.2078]
[1735617247118,0.4242,3344.4,3343.8,3.2078]
[1735617247312,3.2078,3344.6,3343.8,3.2078]
[1735617247518,1.3266,3344.8,3344.3,0.29953]
[1735617247717,0.2995,3344.7,3344.4,1.2922]
[1735617249414,1.62609,3344.8,3344.4,1.2922]
[1735617250512,0.8737,3344.8,3344.4,1.2922]
[1735617250823,0.4495,3344.8,3344.4,1.2922]
[1735617251022,0.4495,3344.8,3344.4,1.59173]
[1735617251628,0.428,3345.1,3344.4,1.59173]
[1735617251629,0.428,3345.1,3344.6,0.29951]
[1735617251921,3.2078,3345.2,3344.5,40.8]
[1735617252127,3.2078,3345.2,3344.7,0.29949]
[1735617252524,3.2078,3345.2,3344.5,40.8]
[1735617252525,3.2078,3345.2,3344.6,0.29951]
[1735617252716,3.50725,3345.2,3344.6,0.29951]
[1735617254128,3.2078,3345.2,3344.5,45.47050198]
[1735617254425,3.2078,3345.2,3344.7,0.29949]
[1735617254625,3.50726,3345.2,3344.7,3.50729]
[1735617255536,0.29946,3345.1,3344.7,3.2078]
[1735617255931,5.47907876,3345.2,3344.7,3.2078]
[1735617256237,3.50726,3345.2,3344.7,3.5073]
[1735617256431,3.50726,3345.2,3344.7,3.2078]
[1735617257032,3.2078,3345.2,3344.7,3.2078]
[1735617257234,0.29946,3345.1,3344.7,3.2078]
[1735617257634,0.29949,3344.9,3344.7,3.2078]
[1735617258135,5.47907876,3345.2,3344.7,3.2078]
[1735617258332,0.73776,3345.1,3344.7,3.2078]
[1735617258529,0.29947,3345.0,3344.7,3.2078]
[1735617258948,0.73777,3345.1,3344.7,3.2078]
[1735617259240,0.29948,3345.0,3344.7,3.2078]
[1735617260439,0.4383,3345.1,3344.7,3.2078]
[1735617260636,3.2078,3345.2,3344.7,3.2078]
[1735617260836,3.2078,3345.2,3344.8,0.29948]
[1735617261037,3.2078,3345.2,3344.9,0.29948]
[1735617261242,3.2078,3345.2,3345.0,0.892]
[1735617261538,3.2078,3345.2,3345.0,1.3397]
[1735617261845,0.29946,3345.1,3345.0,1.3397]
[1735617262439,0.499,3344.5,3344.0,6.8465848]
[1735617262640,0.499,3344.5,3343.2,18.38267101]
[1735617262641,0.29957,3343.9,3343.2,18.38267101]
[1735617262835,0.29957,3343.9,3343.0,0.9058]
[1735617262836,6.22796876,3344.1,3343.0,0.9058]
[1735617263037,3.2078,3343.3,3343.0,0.9058]
[1735617263340,0.29964,3343.2,3343.0,0.9058]
[1735617263939,3.2078,3343.3,3343.0,0.9058]
[1735617264247,0.29964,3343.1,3343.0,0.4581]
[1735617264941,0.29968,3342.8,3342.6,0.4434]
[1735617265244,5.47907876,3342.9,3342.6,0.4434]
[1735617265439,0.29968,3342.7,3342.6,0.4434]
[1735617265641,0.29969,3342.6,3342.4,0.4211]
[1735617265839,0.2997,3342.5,3342.1,3.2078]
[1735617266041,3.50752,3342.3,3342.0,0.4434]
[1735617266451,0.29972,3342.2,3342.0,0.4434]
[1735617266640,3.2078,3342.3,3342.0,0.4434]
[1735617266841,0.29973,3342.1,3342.0,0.4434]
[1735617276449,5.47907876,3342.3,3342.0,0.4434]
[1735617276651,0.29973,3342.2,3342.0,0.4434]
[1735617277644,0.29973,3342.1,3342.0,0.4434]
[1735617278048,0.29973,3342.2,3342.0,0.4434]
[1735617278447,0.29973,3342.1,3342.0,0.4434]
[1735617279853,0.29973,3342.2,3342.0,0.4434]
[1735617282257,0.29972,3342.2,3342.0,0.4434]
[1735617284261,0.29973,3342.1,3342.0,0.4434]
[1735617284654,3.50753,3342.1,3342.0,0.4434]
[1735617303170,0.29977,3341.7,3341.6,0.4211]
[1735617303474,0.2998,3341.3,3341.2,0.4166]
[1735617303674,2.57107876,3341.3,3341.2,0.4166]
[1735617303880,2.57107876,3341.3,3340.7,40.8]
[1735617303881,0.29981,3341.2,3340.7,40.8]
[1735617304176,2.57111876,3340.9,3340.8,0.4166]
[1735617304477,5.77891876,3340.9,3340.8,0.4166]
[1735617310876,0.29986,3340.7,3340.6,0.431]
[1735617311883,3.50766,3340.7,3340.6,0.431]
[1735617312779,0.29986,3340.7,3340.6,0.431]
[1735617312986,3.50766,3340.7,3340.6,0.431]
[1735617317687,3.2078,3340.7,3340.6,0.431]
[1735617318289,3.2078,3340.7,3340.6,0.8561]
[1735617320990,0.29985,3340.8,3340.6,0.8561]
[1735617321186,0.29985,3340.8,3340.7,0.4247]
[1735617321800,5.47907876,3340.9,3340.7,0.4247]
[1735617321999,3.2078,3340.9,3340.7,0.4247]
[1735617324704,3.50764,3340.9,3340.7,0.4247]
[1735617324896,3.2078,3340.9,3340.7,0.4247]
[1735617325098,3.50764,3340.9,3340.7,0.4247]
[1735617326196,0.29985,3340.8,3340.7,0.4247]
[1735617326903,3.2078,3340.9,3340.7,0.4247]
[1735617327105,0.29985,3340.8,3340.7,0.4247]
[1735617328002,3.2078,3340.9,3340.7,0.4247]
[1735617328203,3.2078,3340.9,3340.8,0.29985]
[1735617330299,3.2078,3340.9,3340.7,0.4247]
[1735617330609,0.29985,3340.8,3340.7,0.4247]
[1735617333308,3.50765,3340.9,3340.7,0.72456]
[1735617334316,3.2078,3340.9,3340.7,0.4247]
[1735617334613,0.29983,3341.1,3340.9,0.29984]
[1735617334804,2.27127876,3341.2,3340.7,0.4247]
[1735617335012,2.27127876,3341.2,3340.8,0.29985]
[1735617335013,0.29984,3341.0,3340.8,0.29985]
[1735617335408,3.2078,3341.4,3340.7,0.4247]
[1735617335606,0.29982,3341.3,3340.7,0.4247]
[1735617335812,0.29982,3341.3,3341.1,0.29982]
[1735617336008,0.29982,3341.3,3341.2,0.8707]
[1735617336414,3.2078,3341.4,3341.3,0.29981]
[1735617336608,3.2078,3341.4,3341.3,0.74781]
[1735617336913,2.64828939,3341.7,3341.5,0.29979]
[1735617337314,2.34851939,3341.7,3341.6,0.29978]
[1735617337708,3.50757,3341.8,3341.5,0.29979]
[1735617338113,3.50757,3341.8,3341.3,41.248]
[1735617338410,3.50757,3341.8,3341.6,0.29978]
[1735617338610,3.50757,3341.8,3341.5,0.29979]
[1735617339205,3.50757,3341.8,3341.6,0.29978]
[1735617339621,3.50757,3341.8,3341.7,0.4597]
[1735617339917,3.2078,3341.8,3341.7,0.4597]
[1735617340414,3.50756,3341.8,3341.7,0.4597]
[1735617343109,0.29976,3341.8,3341.7,0.4597]
[1735617344515,0.29975,3341.9,3341.7,0.75947]
[1735617344818,0.29975,3341.9,3341.8,0.4253]
[1735617345615,3.50755,3342.0,3341.8,0.4253]
[1735617345810,0.29975,3341.9,3341.8,0.4253]
[1735617347922,3.50755,3341.9,3341.8,0.4253]
[1735617349025,3.2078,3341.9,3341.8,0.4253]
[1735617352222,3.2078,3341.9,3341.8,0.72506]
[1735617353728,3.2078,3341.9,3341.3,43.18451]
[1735617353729,0.29977,3341.7,3341.4,0.29979]
[1735617354025,0.29978,3341.7,3341.4,1.18999]
[1735617355725,3.50758,3341.7,3341.4,1.18999]
[1735617356527,3.2078,3341.7,3341.5,0.29978]
[1735617357216,3.2078,3341.7,3341.4,0.8902]
[1735617357422,3.50757,3341.7,3341.4,1.18999]
[1735617357928,3.2078,3341.7,3341.5,0.29979]
[1735617359622,3.50757,3341.7,3341.4,1.18999]
[1735617361030,3.2078,3341.7,3341.5,0.29978]
[1735617362333,3.50757,3341.7,3341.4,1.18999]
[1735617362533,0.29979,3341.5,3341.4,0.8902]
[1735617363941,0.29979,3341.5,3341.4,0.4301]
[1735617366930,7.82759815,3341.7,3341.4,0.4301]
[1735617367137,2.64829939,3341.6,3341.4,0.4301]
[1735617367336,2.64829939,3341.6,3341.5,0.4585]
[1735617368440,0.29978,3341.6,3341.5,0.4585]
[1735617372040,2.64829939,3341.6,3341.5,0.4585]
[1735617373245,0.29978,3341.6,3341.5,0.4585]
[1735617374337,2.64829939,3341.6,3341.5,0.4585]
[1735617378149,3.82255909,3341.6,3341.5,0.4585]
[1735617382449,0.29978,3341.6,3341.5,0.4585]
[1735617386059,4.99888179,3341.6,3341.5,0.4585]
[1735617386258,6.07624639,3341.6,3341.5,0.4585]
[1735617391358,4.69910179,3341.6,3341.5,0.4585]
[1735617392666,3.8369702,3341.6,3341.5,0.4585]
[1735617393158,3.8369702,3341.6,3341.4,5.13391875]
[1735617393159,0.29979,3341.5,3341.4,5.13391875]
[1735617393466,1.3771546,3341.5,3341.4,5.13391875]
[1735617393967,1.3771546,3341.5,3341.4,0.4301]
[1735617394967,6.0938397,3341.5,3341.4,0.4301]
[1735617396166,1.3771546,3341.5,3341.4,0.4301]
[1735617397359,0.29982,3341.1,3341.0,4.70381875]
[1735617397561,5.6623492,3341.1,3341.0,4.70381875]
[1735617399164,0.29986,3340.7,3340.6,0.4547]
[1735617399362,1.3772246,3340.7,3340.6,0.4547]
[1735617400370,0.29986,3340.7,3340.6,0.4547]
[1735617400772,3.83627861,3340.7,3340.6,0.4547]
[1735617401270,0.29987,3340.6,3340.4,4.70381875]
[1735617402167,0.29987,3340.6,3340.3,5.15761875]
[1735617402675,0.29987,3340.6,3340.4,0.9192]
[1735617404972,2.35612286,3340.7,3340.4,0.9192]
[1735617405177,0.29988,3340.5,3340.4,0.9192]
[1735617405977,0.29987,3340.6,3340.4,0.9192]
[1735617409174,0.29988,3340.5,3340.4,0.9192]
[1735617415477,5.56392286,3340.8,3340.4,4.38335931]
[1735617415776,3.53641861,3341.0,3340.6,3.2078]
[1735617415972,3.53641861,3341.0,3340.9,0.29984]
[1735617416881,0.2998,3341.3,3341.0,0.29983]
[1735617417176,3.53641861,3341.5,3341.0,0.29983]
[1735617417373,0.2998,3341.4,3341.0,0.29983]
[1735617419178,0.2998,3341.4,3341.1,0.937]
[1735617419583,3.96961861,3341.5,3341.1,0.937]
[1735617419776,0.29979,3341.4,3341.1,0.937]
[1735617419975,3.53641861,3341.5,3341.1,0.937]
[1735617420176,3.53641861,3341.5,3341.4,0.29979]
[1735617421884,3.2078,3341.7,3341.4,41.09979]
[1735617422378,0.29978,3341.6,3341.4,40.8]
[1735617422682,3.2078,3341.7,3341.4,40.8]
[1735617422683,3.50757,3341.7,3341.4,40.8]
[1735617423279,3.2078,3341.7,3341.4,40.8]
[1735617423478,0.29978,3341.6,3341.4,40.8]
[1735617423678,0.29979,3341.6,3341.4,40.8]
[1735617423873,0.29978,3341.6,3341.2,0.73961]
[1735617424287,0.29978,3341.6,3341.3,40.8]
[1735617425278,5.48495931,3341.7,3341.3,41.0998]
[1735617425484,5.78472931,3341.7,3341.3,41.0998]
[1735617425784,3.50757,3341.7,3341.3,41.0998]
[1735617425986,3.53641861,3341.8,3341.4,0.29979]
[1735617425987,3.83618861,3341.8,3341.4,0.29979]
[1735617426377,0.29977,3341.7,3341.4,0.29979]
[1735617426786,0.29977,3341.7,3341.3,41.0998]
[1735617428583,0.29978,3341.6,3341.3,41.0998]
[1735617430187,1.37702263,3341.6,3341.3,41.0998]
[1735617430387,1.07724263,3341.6,3341.3,41.0998]
[1735617432891,1.37702263,3341.6,3341.3,41.0998]
[1735617437098,1.37702263,3341.6,3341.4,0.29979]
[1735617437099,1.07724263,3341.6,3341.4,0.29979]
[1735617438186,3.2078,3341.7,3341.6,0.29978]
[1735617439693,3.2078,3341.7,3341.3,40.8]
[1735617439892,1.07724263,3341.6,3341.3,40.8]
[1735617440289,1.07724263,3341.6,3341.5,0.29979]
[1735617440599,1.07724263,3341.6,3341.3,41.0998]
[1735617441600,1.07724263,3341.4,3341.3,40.8]
[1735617441794,1.07724263,3341.6,3341.3,40.8]
[1735617441995,1.07724263,3341.6,3341.4,0.29979]
[1735617442598,1.37702263,3341.6,3341.3,41.0998]
[1735617443799,1.07724263,3341.6,3341.4,0.29979]
[1735617444198,0.29977,3341.7,3341.4,0.29979]
[1735617445305,0.29977,3341.7,3341.5,0.4446]
[1735617445897,0.79485,3341.9,3341.6,0.29977]
[1735617446202,0.4951,3341.9,3341.5,1.52184263]
[1735617446499,3.2078,3342.0,3341.8,0.29975]
[1735617446702,3.2078,3342.0,3341.9,0.73245]
[1735617447104,3.2078,3342.0,3341.9,0.4327]
[1735617447800,3.2078,3342.0,3341.9,0.73245]
[1735617448002,3.2078,3342.0,3341.9,0.4327]
[1735617448401,3.2078,3342.0,3341.9,0.8494]
[1735617450298,4.28504263,3342.0,3341.9,0.8494]
[1735617453806,3.2078,3342.0,3341.9,0.8494]
[1735617454106,3.53641861,3342.3,3341.9,1.92664263]
[1735617454307,3.53641861,3342.3,3342.2,0.29972]
[1735617455008,3.53641861,3342.3,3342.2,41.09972]
[1735617455211,1.28461861,3342.3,3342.2,46.09972]
[1735617455408,4.71522482,3342.5,3342.4,0.2997]
[1735617455597,4.71522482,3342.5,3342.4,2.56294263]
[1735617455797,0.74125,3343.1,3342.8,0.29966]
[1735617456000,0.74125,3343.1,3342.9,40.8]
[1735617456001,0.4416,3343.1,3342.9,40.8]
[1735617456201,0.4416,3343.1,3342.9,41.09966]
[1735617456399,0.74124,3343.1,3342.9,41.09966]
[1735617457000,0.4416,3343.1,3342.9,41.09966]
[1735617457205,0.4416,3343.1,3343.0,1.37689263]
[1735617457404,4.71522482,3343.6,3343.0,1.37689263]
[1735617457405,1.07724263,3343.7,3343.4,0.29962]
[1735617457608,0.4169,3343.5,3343.4,1.37686263]
[1735617458310,4.71522482,3343.9,3343.4,3.2078]
[1735617458506,4.71522482,3343.9,3343.8,0.29958]
[1735617458713,0.4283,3344.0,3343.5,0.4299]
[1735617458906,0.4283,3344.0,3343.9,0.29957]
[1735617459411,0.4283,3344.0,3343.9,3.50737]
[1735617460412,0.4283,3344.0,3343.9,44.30737]
[1735617460807,0.4283,3344.0,3343.9,44.0078]
[1735617461710,0.4283,3344.0,3343.9,44.30737]
[1735617462513,0.4283,3344.0,3343.9,3.50737]
[1735617462712,0.4283,3344.0,3343.9,0.29957]
[1735617462913,0.4283,3344.0,3343.8,0.29958]
[1735617464110,0.4283,3344.0,3343.6,40.8]
[1735617464417,0.4283,3344.0,3343.8,0.29957]
[1735617465217,0.4283,3344.0,3343.9,0.29957]
[1735617467721,0.4283,3344.0,3343.9,3.50737]
[1735617468022,0.72891,3344.6,3344.2,0.29954]
[1735617468212,0.4204,3344.5,3344.2,0.29954]
[1735617468616,0.4204,3344.5,3344.3,0.29953]
[1735617468817,0.71992,3344.5,3344.1,0.29954]
[1735617469018,0.71992,3344.5,3344.2,0.29954]
[1735617469612,0.4204,3344.5,3344.2,0.29954]
[1735617469818,0.71992,3344.5,3344.2,0.29954]
[1735617470324,0.4204,3344.5,3344.2,0.29954]
[1735617471026,0.71992,3344.5,3344.2,0.29954]
[1735617472426,0.4204,3344.5,3344.3,0.29953]
[1735617473828,0.4204,3344.5,3343.9,3.2078]
[1735617474128,0.29953,3344.4,3344.1,0.29955]
[1735617475127,0.71992,3344.5,3344.2,0.29954]
[1735617475922,0.4204,3344.5,3344.4,0.29953]
[1735617478231,0.8586,3344.6,3344.4,0.29953]
[1735617479827,0.8586,3344.6,3343.9,3.2078]
[1735617480228,0.8586,3344.6,3344.5,0.29952]
[1735617481423,1.2843,3344.6,3344.5,0.29952]
[1735617484829,3.2078,3345.1,3344.9,0.29948]
[1735617485029,0.882,3345.0,3344.9,0.29948]
[1735617488030,0.882,3345.0,3344.8,0.29949]
[1735617488431,0.882,3345.0,3344.9,0.29948]
[1735617507553,1.18148,3345.0,3344.8,4.68602926]
[1735617507752,1.18148,3345.0,3344.7,4.98551926]
[1735617508147,1.18148,3345.0,3344.7,45.78551926]
[1735617508648,1.18148,3345.0,3344.7,45.48602926]
[1735617508947,0.882,3345.0,3344.9,0.29948]
[1735617509251,0.4298,3345.0,3344.9,0.29948]
[1735617509844,0.4298,3345.0,3344.9,41.09948]
[1735617510550,0.4298,3345.0,3344.9,41.54748]
[1735617511253,0.4265,3345.1,3345.0,0.29947]
[1735617511852,0.4265,3345.1,3345.0,1.37444502]
[1735617512351,0.8761,3345.3,3345.1,0.29946]
[1735617512547,1.3188,3345.3,3345.1,0.29946]
[1735617512952,1.61825,3345.3,3345.0,4.98549926]
[1735617513654,1.61825,3345.3,3345.0,4.68602926]
[1735617513655,0.29946,3345.2,3345.0,4.68602926]
[1735617514056,1.3188,3345.3,3345.0,4.68602926]
[1735617514262,1.61825,3345.3,3345.0,4.68602926]
[1735617514557,1.07497502,3345.2,3345.0,4.68602926]
[1735617514751,0.29946,3345.1,3345.0,4.68602926]
[1735617516462,0.29947,3345.0,3344.9,4.68602926]
[1735617516761,1.37444502,3345.0,3344.9,4.68602926]
[1735617517857,0.29949,3344.9,3344.7,4.68602926]
[1735617518055,0.73659,3344.9,3344.7,4.68602926]
[1735617518355,0.4371,3344.9,3344.7,4.68602926]
[1735617518549,0.4371,3344.9,3344.7,3.30322926]
[1735617518550,1.37446502,3344.8,3344.7,3.30322926]
[1735617518755,1.37446502,3344.8,3344.7,0.36042926]
[1735617520256,2.57124441,3344.8,3344.7,0.36042926]
[1735617520652,0.29952,3344.5,3344.2,0.4596]
[1735617521761,3.53313693,3344.3,3344.2,0.4596]
[1735617525257,0.29956,3344.0,3343.8,7.0290439]
[1735617525462,3.53313693,3344.3,3343.7,7.4555439]
[1735617525463,0.29958,3343.8,3343.7,7.4555439]
[1735617525762,0.88,3343.9,3343.7,7.4555439]
[1735617526063,1.17957,3343.9,3343.7,7.4555439]
[1735617526752,0.29958,3343.8,3343.7,7.4555439]
[1735617526960,4.41313693,3343.9,3343.6,0.4198]
[1735617527261,0.4311,3343.7,3343.6,0.4198]
[1735617527860,0.73069,3343.7,3343.6,0.4198]
[1735617528056,0.4311,3343.7,3343.6,0.4198]
[1735617528256,4.41313693,3343.9,3343.6,0.4198]
[1735617528466,4.71270693,3343.9,3343.6,0.7194]
[1735617529362,1.17957,3343.9,3343.6,0.7194]
[1735617529963,0.29959,3343.8,3343.6,0.4198]
[1735617530263,0.29961,3343.5,3343.4,40.8]
[1735617530460,0.2996,3343.6,3343.3,0.4483]
[1735617530763,0.2996,3343.6,3343.3,0.74792]
[1735617530964,0.2996,3343.6,3343.3,41.54792]
[1735617531153,0.2996,3343.6,3343.3,41.2483]
[1735617531558,0.2996,3343.6,3343.3,41.54792]
[1735617531759,3.50739,3343.7,3343.3,41.54792]
[1735617533766,3.2078,3343.7,3343.3,41.2483]
[1735617534065,0.2996,3343.6,3343.3,41.2483]
[1735617534364,3.5074,3343.7,3343.3,41.54792]
[1735617534562,3.2078,3343.7,3343.3,41.2483]
[1735617534758,0.2996,3343.6,3343.3,41.2483]
[1735617535359,0.7306,3343.6,3343.3,41.2483]
[1735617535659,0.29962,3343.4,3343.3,41.2483]
[1735617535859,2.70275441,3343.6,3343.3,41.2483]
[1735617535860,0.29961,3343.5,3343.3,41.2483]
[1735617539362,5.91055441,3343.6,3343.3,41.2483]
[1735617539563,0.29962,3343.4,3343.3,41.2483]
[1735617540066,0.29961,3343.5,3343.3,41.2483]
[1735617540469,0.29962,3343.4,3343.3,41.2483]
[1735617540670,0.29962,3343.4,3343.3,0.4483]
[1735617541369,5.91055441,3343.6,3342.7,0.4494]
[1735617541370,0.29966,3343.0,3342.7,0.4494]
[1735617541669,0.29966,3343.0,3342.8,0.4288]
[1735617541871,0.29966,3342.9,3342.8,41.2288]
[1735617542170,0.29965,3343.0,3342.8,41.2288]
[1735617542372,1.07636871,3342.9,3342.8,41.2288]
[1735617543866,1.07636871,3342.9,3342.8,0.4288]
[1735617544366,0.4433,3343.1,3342.8,0.4288]
[1735617544367,3.6511,3343.1,3342.8,0.4288]
[1735617544567,0.29966,3342.9,3342.8,0.4288]
[1735617544759,2.27381435,3343.0,3342.1,0.4516]
[1735617545071,3.2078,3342.6,3342.2,0.4355]
[1735617545273,0.29971,3342.4,3342.3,40.8]
[1735617546670,0.4452,3342.5,3342.2,0.4355]
[1735617546877,0.29971,3342.3,3342.2,0.4355]
[1735617547775,0.29973,3342.1,3342.0,0.4306]
[1735617547967,3.50753,3342.1,3342.0,0.4306]
[1735617548967,5.48161435,3342.1,3341.8,0.4557]
[1735617549163,0.29975,3341.9,3341.8,0.4557]
[1735617550666,3.50754,3342.1,3341.8,41.2557]
[1735617553373,3.2078,3342.1,3342.0,0.29974]
[1735617553773,3.2078,3342.5,3342.0,0.29974]
[1735617553978,3.2078,3342.5,3342.1,40.8]
[1735617554267,3.2078,3342.5,3342.2,0.74062]
[1735617554574,3.2078,3342.5,3342.2,1.15812]
[1735617554776,3.2078,3342.5,3342.2,0.8584]
[1735617554970,5.48161435,3343.0,3342.4,0.2997]
[1735617555176,0.29967,3342.8,3342.5,0.4395]
[1735617555673,0.29968,3342.7,3342.5,0.4395]
[1735617556469,0.29969,3342.6,3342.5,0.4395]
[1735617558475,3.50749,3342.6,3342.5,0.4395]
[1735617558678,3.2078,3342.6,3342.5,0.4395]
[1735617561276,3.50749,3342.6,3342.5,0.4395]
[1735617561479,3.94689,3342.6,3342.5,0.4395]
[1735617564278,3.6472,3342.6,3342.2,0.8584]
[1735617564476,0.29971,3342.3,3342.2,0.8768]
[1735617567080,0.29971,3342.3,3342.0,3.2078]
[1735617567274,0.29971,3342.3,3342.1,0.4404]